[Event "Late-Titled-Tuesday-Blitz-September-12-2023"]
[Site "Chess.com"]
[Date "2023.09.12"]
[Round "9"]
[White "Dewarfd"]
[Black "Miguelitro69"]
[Result "0-1"]
[WhiteElo "2204"]
[BlackElo "2293"]
[TimeControl "180+1"]
[EndTime "15:39:21 PDT"]
[Termination "Miguelitro69 won on time"]

1. d4 {[%clk 0:03:00]} 1... d6 {[%clk 0:02:53.3]} 2. e3 {[%clk 0:02:59.4]} 2...
Nf6 {[%clk 0:02:53.4]} 3. Nf3 {[%clk 0:02:59.6]} 3... g6 {[%clk 0:02:53.6]} 4.
Be2 {[%clk 0:02:59.4]} 4... Bg7 {[%clk 0:02:53.8]} 5. b4 {[%clk 0:02:59.2]} 5...
O-O {[%clk 0:02:53.8]} 6. Bb2 {[%clk 0:02:59.1]} 6... a5 {[%clk 0:02:49.9]} 7.
b5 {[%clk 0:02:58.4]} 7... c6 {[%clk 0:02:48.9]} 8. a4 {[%clk 0:02:57.9]} 8...
c5 {[%clk 0:02:44.2]} 9. O-O {[%clk 0:02:46.4]} 9... b6 {[%clk 0:02:41.8]} 10.
Nbd2 {[%clk 0:02:45]} 10... Bb7 {[%clk 0:02:41.9]} 11. c4 {[%clk 0:02:40.9]}
11... cxd4 {[%clk 0:02:40.4]} 12. exd4 {[%clk 0:02:38.3]} 12... Nbd7 {[%clk
0:02:39.4]} 13. Nb3 {[%clk 0:02:38.4]} 13... Rc8 {[%clk 0:02:38.5]} 14. Rc1
{[%clk 0:02:35.7]} 14... e6 {[%clk 0:02:29.7]} 15. Ba3 {[%clk 0:02:26.5]} 15...
Qe7 {[%clk 0:02:28.3]} 16. c5 {[%clk 0:02:24.6]} 16... dxc5 {[%clk 0:02:24.6]}
17. dxc5 {[%clk 0:02:25.5]} 17... Bd5 {[%clk 0:02:06]} 18. Bc4 {[%clk
0:02:11.9]} 18... Nxc5 {[%clk 0:01:26.9]} 19. Bxc5 {[%clk 0:02:04.2]} 19... bxc5
{[%clk 0:01:26.3]} 20. Re1 {[%clk 0:01:53.1]} 20... Rfd8 {[%clk 0:01:24.7]} 21.
Bxd5 {[%clk 0:01:38.9]} 21... Nxd5 {[%clk 0:01:23.9]} 22. Qc2 {[%clk 0:01:23.2]}
22... c4 {[%clk 0:01:10]} 23. Nbd4 {[%clk 0:01:12]} 23... Nb4 {[%clk 0:01:05.7]}
24. Qb1 {[%clk 0:01:10.4]} 24... Bxd4 {[%clk 0:01:01.3]} 25. Nxd4 {[%clk
0:01:09.8]} 25... Rxd4 {[%clk 0:01:01.1]} 26. b6 {[%clk 0:01:09]} 26... Qb7
{[%clk 0:00:57.9]} 27. Red1 {[%clk 0:01:00.1]} 27... Rcd8 {[%clk 0:00:51.7]} 28.
Qa1 {[%clk 0:00:48.2]} 28... Qxb6 {[%clk 0:00:49.9]} 29. h3 {[%clk 0:00:44.5]}
29... Rd2 {[%clk 0:00:37.8]} 30. Rxd2 {[%clk 0:00:33.7]} 30... Rxd2 {[%clk
0:00:36.7]} 31. Qf6 {[%clk 0:00:34.4]} 31... Qd4 {[%clk 0:00:36.5]} 32. Qf3
{[%clk 0:00:25.9]} 32... Nd3 {[%clk 0:00:35]} 33. Rf1 {[%clk 0:00:09.4]} 33...
c3 {[%clk 0:00:31.9]} 34. Qa8+ {[%clk 0:00:07.9]} 34... Kg7 {[%clk 0:00:31]} 35.
Qxa5 {[%clk 0:00:07.5]} 35... Nxf2 {[%clk 0:00:27.4]} 36. Kh2 {[%clk 0:00:02.3]}
36... Qf4+ {[%clk 0:00:21.5]} 37. Kg1 {[%clk 0:00:02.3]} 37... Qg3 {[%clk
0:00:18.4]} 0-1

[Event "Late-Titled-Tuesday-Blitz-September-12-2023"]
[Site "Chess.com"]
[Date "2023.09.12"]
[Round "9"]
[White "KamlaPasand"]
[Black "Gyulamiryan-koryun"]
[Result "1-0"]
[WhiteElo "2291"]
[BlackElo "2013"]
[TimeControl "180+1"]
[EndTime "15:39:22 PDT"]
[Termination "KamlaPasand won on time"]

1. e4 {[%clk 0:02:54.4]} 1... c5 {[%clk 0:02:58.1]} 2. Nf3 {[%clk 0:02:54.3]}
2... d6 {[%clk 0:02:57.9]} 3. Bb5+ {[%clk 0:02:54]} 3... Bd7 {[%clk 0:02:56.9]}
4. Bxd7+ {[%clk 0:02:51.7]} 4... Qxd7 {[%clk 0:02:56.4]} 5. O-O {[%clk
0:02:52.6]} 5... g6 {[%clk 0:02:55.2]} 6. d4 {[%clk 0:02:51.5]} 6... Bg7 {[%clk
0:02:52.9]} 7. dxc5 {[%clk 0:02:51.4]} 7... dxc5 {[%clk 0:02:52.8]} 8. Qxd7+
{[%clk 0:02:48.6]} 8... Nxd7 {[%clk 0:02:52.3]} 9. c3 {[%clk 0:02:49.5]} 9... b5
{[%clk 0:02:50.1]} 10. Nbd2 {[%clk 0:02:49.9]} 10... a5 {[%clk 0:02:49.5]} 11.
Nb3 {[%clk 0:02:49.8]} 11... a4 {[%clk 0:02:48.3]} 12. Nbd2 {[%clk 0:02:49.6]}
12... b4 {[%clk 0:02:46.6]} 13. cxb4 {[%clk 0:02:47.4]} 13... cxb4 {[%clk
0:02:46.5]} 14. a3 {[%clk 0:02:48.3]} 14... b3 {[%clk 0:02:39.6]} 15. Nc4 {[%clk
0:02:46.4]} 15... Ngf6 {[%clk 0:02:33.5]} 16. e5 {[%clk 0:02:44]} 16... Ne4
{[%clk 0:02:23.6]} 17. Re1 {[%clk 0:02:40.5]} 17... Nec5 {[%clk 0:02:21.2]} 18.
Bd2 {[%clk 0:02:38.3]} 18... Nd3 {[%clk 0:02:13]} 19. Re3 {[%clk 0:02:37.6]}
19... N7c5 {[%clk 0:02:09.2]} 20. Bc3 {[%clk 0:02:32.5]} 20... e6 {[%clk
0:02:00.2]} 21. Rd1 {[%clk 0:02:30.7]} 21... Nf4 {[%clk 0:01:46.4]} 22. Bb4
{[%clk 0:02:26.7]} 22... Nb7 {[%clk 0:01:28.6]} 23. Nb6 {[%clk 0:02:15.2]} 23...
Ra6 {[%clk 0:01:18.6]} 24. Re4 {[%clk 0:02:13.5]} 24... Rxb6 {[%clk 0:01:09.2]}
25. Rxf4 {[%clk 0:02:08.3]} 25... Bf8 {[%clk 0:00:59.3]} 26. Bxf8 {[%clk
0:02:07.1]} 26... Rxf8 {[%clk 0:00:55]} 27. Rxa4 {[%clk 0:02:08]} 27... Nc5
{[%clk 0:00:51.4]} 28. Ra8+ {[%clk 0:02:07.5]} 28... Ke7 {[%clk 0:00:50.1]} 29.
Rxf8 {[%clk 0:02:03.1]} 29... Kxf8 {[%clk 0:00:50.1]} 30. Nd4 {[%clk 0:02:02.6]}
30... Na4 {[%clk 0:00:46.5]} 31. Rd2 {[%clk 0:02:01.1]} 31... Rb7 {[%clk
0:00:42.9]} 32. f4 {[%clk 0:01:55.4]} 32... Nc5 {[%clk 0:00:42.5]} 33. Nc6
{[%clk 0:01:45.2]} 33... Rc7 {[%clk 0:00:32.5]} 34. Na5 {[%clk 0:01:42.3]} 34...
Ne4 {[%clk 0:00:31.3]} 35. Rd1 {[%clk 0:01:39.1]} 35... Rc2 {[%clk 0:00:26.3]}
36. Nxb3 {[%clk 0:01:35.6]} 36... Rxb2 {[%clk 0:00:26.2]} 37. Nd4 {[%clk
0:01:35.6]} 37... Nc3 {[%clk 0:00:25.6]} 38. Ra1 {[%clk 0:01:33.4]} 38... Na4
{[%clk 0:00:19.6]} 39. Nc6 {[%clk 0:01:27.4]} 39... Kg7 {[%clk 0:00:16.7]} 40.
Nb4 {[%clk 0:01:26]} 40... f6 {[%clk 0:00:15.5]} 41. Rd1 {[%clk 0:01:24.9]}
41... fxe5 {[%clk 0:00:14.5]} 42. fxe5 {[%clk 0:01:25.3]} 42... Nc3 {[%clk
0:00:12.9]} 43. Rd7+ {[%clk 0:01:24.6]} 43... Kh6 {[%clk 0:00:11.8]} 44. Nd3
{[%clk 0:01:21.8]} 44... Ne4 {[%clk 0:00:11]} 45. Nxb2 {[%clk 0:01:21.4]} 45...
Nc5 {[%clk 0:00:10]} 46. Rc7 {[%clk 0:01:20.6]} 46... Ne4 {[%clk 0:00:06.7]} 47.
Rc6 {[%clk 0:01:20.7]} 47... Nd2 {[%clk 0:00:06]} 48. Rxe6 {[%clk 0:01:20.6]}
48... Nb1 {[%clk 0:00:04.9]} 49. a4 {[%clk 0:01:20.1]} 49... Nc3 {[%clk
0:00:04.6]} 50. a5 {[%clk 0:01:21]} 50... Nb5 {[%clk 0:00:04.6]} 51. a6 {[%clk
0:01:21.9]} 51... Nc7 {[%clk 0:00:04.4]} 52. Re7 {[%clk 0:01:21.6]} 52... Nxa6
{[%clk 0:00:04.1]} 53. e6 {[%clk 0:01:21.7]} 53... Nc5 {[%clk 0:00:04.3]} 54.
Re8 {[%clk 0:01:21.3]} 54... Kg7 {[%clk 0:00:03.4]} 55. Nc4 {[%clk 0:01:20.4]}
55... Kf6 {[%clk 0:00:02.8]} 56. e7 {[%clk 0:01:14.4]} 56... Kf7 {[%clk
0:00:02]} 57. Nd6+ {[%clk 0:01:15]} 1-0

[Event "Late-Titled-Tuesday-Blitz-September-12-2023"]
[Site "Chess.com"]
[Date "2023.09.12"]
[Round "9"]
[White "Skagoogle"]
[Black "Alphafischer2019"]
[Result "1-0"]
[WhiteElo "2781"]
[BlackElo "2562"]
[TimeControl "180+1"]
[EndTime "15:39:24 PDT"]
[Termination "Skagoogle won by checkmate"]

1. e4 {[%clk 0:03:00.9]} 1... e6 {[%clk 0:02:59.4]} 2. d4 {[%clk 0:02:57.6]}
2... d5 {[%clk 0:02:56.9]} 3. Nc3 {[%clk 0:02:55.6]} 3... dxe4 {[%clk
0:02:55.8]} 4. Nxe4 {[%clk 0:02:55.6]} 4... Nd7 {[%clk 0:02:56.6]} 5. Bd3 {[%clk
0:02:55.4]} 5... Ngf6 {[%clk 0:02:56.4]} 6. Qe2 {[%clk 0:02:55.8]} 6... Nxe4
{[%clk 0:02:48.7]} 7. Bxe4 {[%clk 0:02:55.7]} 7... Nf6 {[%clk 0:02:40.6]} 8.
Bxb7 {[%clk 0:02:55.6]} 8... Bxb7 {[%clk 0:02:36.8]} 9. Qb5+ {[%clk 0:02:54.7]}
9... Qd7 {[%clk 0:02:19]} 10. Qxb7 {[%clk 0:02:54.5]} 10... Rd8 {[%clk 0:02:19]}
11. Nf3 {[%clk 0:02:54.3]} 11... c5 {[%clk 0:02:16.2]} 12. Qxd7+ {[%clk
0:02:53.7]} 12... Rxd7 {[%clk 0:02:17.1]} 13. dxc5 {[%clk 0:02:53.2]} 13... Bxc5
{[%clk 0:02:18]} 14. Be3 {[%clk 0:02:40.7]} 14... Bxe3 {[%clk 0:02:11.7]} 15.
fxe3 {[%clk 0:02:41.6]} 15... O-O {[%clk 0:02:11]} 16. Ke2 {[%clk 0:02:41.7]}
16... Rc8 {[%clk 0:02:05]} 17. c3 {[%clk 0:02:38.8]} 17... Rb7 {[%clk
0:02:05.4]} 18. Rab1 {[%clk 0:02:38.3]} 18... Nd5 {[%clk 0:02:00.3]} 19. Rhc1
{[%clk 0:02:20.6]} 19... Rbc7 {[%clk 0:01:57]} 20. Rd1 {[%clk 0:02:17.8]} 20...
g6 {[%clk 0:01:52.2]} 21. Rd2 {[%clk 0:02:14.6]} 21... Rb7 {[%clk 0:01:48.9]}
22. Rbd1 {[%clk 0:02:05.6]} 22... Kg7 {[%clk 0:01:42.7]} 23. e4 {[%clk
0:02:02.5]} 23... Nb6 {[%clk 0:01:37.1]} 24. Rd8 {[%clk 0:01:59.9]} 24... Rxd8
{[%clk 0:01:31.7]} 25. Rxd8 {[%clk 0:01:59.4]} 25... Na4 {[%clk 0:01:32.4]} 26.
Rd2 {[%clk 0:01:32.4]} 26... Nxb2 {[%clk 0:01:25.4]} 27. Rc2 {[%clk 0:01:20.4]}
27... Nc4 {[%clk 0:01:24.6]} 28. Kd3 {[%clk 0:01:15.8]} 28... Na3 {[%clk
0:01:24.6]} 29. Rf2 {[%clk 0:01:03.9]} 29... Rd7+ {[%clk 0:01:23.7]} 30. Ke3
{[%clk 0:00:57.5]} 30... Nc4+ {[%clk 0:01:23.8]} 31. Kf4 {[%clk 0:00:54.5]}
31... f6 {[%clk 0:01:22.4]} 32. e5 {[%clk 0:00:46.9]} 32... Rd3 {[%clk
0:00:35.3]} 33. exf6+ {[%clk 0:00:42.8]} 33... Kxf6 {[%clk 0:00:36.2]} 34. Ke4
{[%clk 0:00:43.1]} 34... Rd5 {[%clk 0:00:20.6]} 35. Ne5+ {[%clk 0:00:39.8]}
35... Ke7 {[%clk 0:00:19.1]} 36. Nxc4 {[%clk 0:00:39.5]} 36... Rc5 {[%clk
0:00:19.5]} 37. Ne5 {[%clk 0:00:35.7]} 37... Rd5 {[%clk 0:00:20.4]} 38. c4
{[%clk 0:00:33.1]} 38... Ra5 {[%clk 0:00:20]} 39. Rf7+ {[%clk 0:00:30.9]} 39...
Ke8 {[%clk 0:00:20.3]} 40. Rxh7 {[%clk 0:00:30.4]} 40... Rxa2 {[%clk 0:00:21.2]}
41. g4 {[%clk 0:00:29.5]} 41... a5 {[%clk 0:00:21.8]} 42. c5 {[%clk 0:00:24.8]}
42... Kd8 {[%clk 0:00:21.4]} 43. Ra7 {[%clk 0:00:23.8]} 43... a4 {[%clk
0:00:21.7]} 44. c6 {[%clk 0:00:23.5]} 44... a3 {[%clk 0:00:20.9]} 45. Nf7+
{[%clk 0:00:23.9]} 45... Kc8 {[%clk 0:00:19.7]} 46. Nd6+ {[%clk 0:00:22.9]}
46... Kb8 {[%clk 0:00:20.6]} 47. c7+ {[%clk 0:00:21.5]} 47... Kxa7 {[%clk
0:00:21.5]} 48. c8=Q {[%clk 0:00:21.9]} 48... Re2+ {[%clk 0:00:22.1]} 49. Kd3
{[%clk 0:00:21.9]} 49... a2 {[%clk 0:00:23]} 50. Qc7+ {[%clk 0:00:20.9]} 50...
Ka6 {[%clk 0:00:22.9]} 51. Qb7+ {[%clk 0:00:21.8]} 51... Ka5 {[%clk 0:00:23.3]}
52. Qb5# {[%clk 0:00:22.7]} 1-0

[Event "Late-Titled-Tuesday-Blitz-September-12-2023"]
[Site "Chess.com"]
[Date "2023.09.12"]
[Round "9"]
[White "only_strong_moves"]
[Black "m_ezat"]
[Result "1-0"]
[WhiteElo "2521"]
[BlackElo "2655"]
[TimeControl "180+1"]
[EndTime "15:39:25 PDT"]
[Termination "only_strong_moves won on time"]

1. d4 {[%clk 0:02:51.2]} 1... Nf6 {[%clk 0:02:59.5]} 2. Nc3 {[%clk 0:02:50.7]}
2... d5 {[%clk 0:02:57.8]} 3. Bf4 {[%clk 0:02:51.3]} 3... c5 {[%clk 0:02:57.2]}
4. e4 {[%clk 0:02:51.1]} 4... cxd4 {[%clk 0:02:57.8]} 5. Qxd4 {[%clk 0:02:34.7]}
5... Nc6 {[%clk 0:02:56]} 6. Bb5 {[%clk 0:02:35.2]} 6... Bd7 {[%clk 0:02:54.6]}
7. Bxc6 {[%clk 0:02:34.7]} 7... Bxc6 {[%clk 0:02:54.9]} 8. exd5 {[%clk
0:02:29.6]} 8... Nxd5 {[%clk 0:02:54.6]} 9. Nxd5 {[%clk 0:02:25.6]} 9... Qxd5
{[%clk 0:02:53.8]} 10. Qxd5 {[%clk 0:02:25.1]} 10... Bxd5 {[%clk 0:02:53.3]} 11.
f3 {[%clk 0:02:21.7]} 11... e6 {[%clk 0:02:48.4]} 12. Ne2 {[%clk 0:02:21.8]}
12... Bc5 {[%clk 0:02:44.5]} 13. O-O-O {[%clk 0:02:20.3]} 13... O-O {[%clk
0:02:44.2]} 14. Nc3 {[%clk 0:02:19.7]} 14... Bc6 {[%clk 0:02:42.8]} 15. Bd6
{[%clk 0:02:19.7]} 15... Be3+ {[%clk 0:02:42.6]} 16. Kb1 {[%clk 0:02:16.9]}
16... Rfd8 {[%clk 0:02:42.3]} 17. Rhe1 {[%clk 0:02:16.5]} 17... Bf2 {[%clk
0:02:39.7]} 18. Re2 {[%clk 0:02:15.4]} 18... Bb6 {[%clk 0:02:39.3]} 19. Red2
{[%clk 0:02:12.7]} 19... h6 {[%clk 0:02:35.4]} 20. Ne4 {[%clk 0:02:06.6]} 20...
Rac8 {[%clk 0:02:22.8]} 21. b3 {[%clk 0:01:54]} 21... Rd7 {[%clk 0:02:11.3]} 22.
c4 {[%clk 0:01:51.2]} 22... Rcd8 {[%clk 0:02:03.6]} 23. Kc2 {[%clk 0:01:37.2]}
23... f5 {[%clk 0:01:57.8]} 24. Nc5 {[%clk 0:01:15.4]} 24... Rxd6 {[%clk
0:01:54.2]} 25. Rxd6 {[%clk 0:01:16.3]} 25... Rxd6 {[%clk 0:01:53.3]} 26. Rxd6
{[%clk 0:01:17.2]} 26... Bxc5 {[%clk 0:01:53.5]} 27. Rxe6 {[%clk 0:01:17.4]}
27... Bf8 {[%clk 0:00:51.9]} 28. Kc3 {[%clk 0:01:15.2]} 28... Kf7 {[%clk
0:00:48.7]} 29. Re2 {[%clk 0:01:15.7]} 29... a5 {[%clk 0:00:43.6]} 30. Kd4
{[%clk 0:01:09.1]} 30... Bd6 {[%clk 0:00:41.2]} 31. h3 {[%clk 0:01:00.6]} 31...
g5 {[%clk 0:00:35.5]} 32. c5 {[%clk 0:00:59.2]} 32... Bg3 {[%clk 0:00:34.1]} 33.
Kc4 {[%clk 0:00:57.1]} 33... h5 {[%clk 0:00:31.4]} 34. Rd2 {[%clk 0:00:56.2]}
34... h4 {[%clk 0:00:26.3]} 35. a3 {[%clk 0:00:53.5]} 35... Bf4 {[%clk
0:00:20.1]} 36. Re2 {[%clk 0:00:45.4]} 36... Bg3 {[%clk 0:00:11.7]} 37. b4
{[%clk 0:00:44]} 37... axb4 {[%clk 0:00:08.8]} 38. axb4 {[%clk 0:00:44.9]} 38...
Bd7 {[%clk 0:00:07]} 39. b5 {[%clk 0:00:35.2]} 39... Be6+ {[%clk 0:00:07.9]} 40.
Kb4 {[%clk 0:00:35.7]} 40... g4 {[%clk 0:00:05.7]} 41. hxg4 {[%clk 0:00:26.2]}
41... fxg4 {[%clk 0:00:04.6]} 42. fxg4 {[%clk 0:00:26.5]} 42... Bxg4 {[%clk
0:00:02.7]} 43. Rc2 {[%clk 0:00:26.9]} 1-0

[Event "Late-Titled-Tuesday-Blitz-September-12-2023"]
[Site "Chess.com"]
[Date "2023.09.12"]
[Round "9"]
[White "RCone"]
[Black "dennisodessa"]
[Result "0-1"]
[WhiteElo "2325"]
[BlackElo "2508"]
[TimeControl "180+1"]
[EndTime "15:39:27 PDT"]
[Termination "dennisodessa won by checkmate"]

1. e4 {[%clk 0:03:00]} 1... e6 {[%clk 0:02:57]} 2. d4 {[%clk 0:02:59.6]} 2... d5
{[%clk 0:02:57.6]} 3. e5 {[%clk 0:03:00.1]} 3... c5 {[%clk 0:02:56.9]} 4. c3
{[%clk 0:03:00.6]} 4... Nc6 {[%clk 0:02:57.3]} 5. Nf3 {[%clk 0:02:59.3]} 5...
Qb6 {[%clk 0:02:57.9]} 6. Bd3 {[%clk 0:02:56.8]} 6... Bd7 {[%clk 0:02:57.5]} 7.
dxc5 {[%clk 0:02:55]} 7... Bxc5 {[%clk 0:02:56.2]} 8. O-O {[%clk 0:02:55.5]}
8... Qc7 {[%clk 0:02:48.9]} 9. Re1 {[%clk 0:02:52.6]} 9... Nge7 {[%clk
0:02:49.1]} 10. b4 {[%clk 0:02:49.4]} 10... Bb6 {[%clk 0:02:48.3]} 11. b5 {[%clk
0:02:45.9]} 11... Na5 {[%clk 0:02:47.2]} 12. a4 {[%clk 0:02:45.7]} 12... Nc4
{[%clk 0:02:38.3]} 13. Nbd2 {[%clk 0:02:33.8]} 13... Ng6 {[%clk 0:02:15.3]} 14.
Bxc4 {[%clk 0:02:21.8]} 14... dxc4 {[%clk 0:02:16.2]} 15. Ne4 {[%clk 0:02:22]}
15... O-O {[%clk 0:02:15.6]} 16. a5 {[%clk 0:02:03.4]} 16... Bxa5 {[%clk
0:02:09.1]} 17. Rxa5 {[%clk 0:02:02.7]} 17... Qxa5 {[%clk 0:02:07.2]} 18. Qxd7
{[%clk 0:02:03]} 18... Rfd8 {[%clk 0:01:49.1]} 19. Qxb7 {[%clk 0:02:01.9]} 19...
Rdb8 {[%clk 0:01:45.8]} 20. Qc6 {[%clk 0:01:51.5]} 20... Qxb5 {[%clk 0:01:46]}
21. Qxb5 {[%clk 0:01:47.4]} 21... Rxb5 {[%clk 0:01:46.9]} 22. Nd6 {[%clk
0:01:44.5]} 22... Rd5 {[%clk 0:01:36]} 23. Nxc4 {[%clk 0:01:42.8]} 23... Rc5
{[%clk 0:01:36.2]} 24. Nd6 {[%clk 0:01:20.9]} 24... Rxc3 {[%clk 0:01:37.1]} 25.
Be3 {[%clk 0:01:18.2]} 25... a5 {[%clk 0:01:32.8]} 26. Nd4 {[%clk 0:01:16.8]}
26... Nxe5 {[%clk 0:01:21.5]} 27. N4b5 {[%clk 0:01:16.1]} 27... Rd3 {[%clk
0:01:10.4]} 28. Bf4 {[%clk 0:01:05.8]} 28... Ng6 {[%clk 0:01:07]} 29. Bc1 {[%clk
0:01:01.5]} 29... a4 {[%clk 0:01:03.8]} 30. Ba3 {[%clk 0:01:01.8]} 30... Nf4
{[%clk 0:00:55.8]} 31. g3 {[%clk 0:01:00.1]} 31... Nd5 {[%clk 0:00:55.6]} 32.
Rc1 {[%clk 0:00:57.2]} 32... h5 {[%clk 0:00:44.5]} 33. h4 {[%clk 0:00:56.5]}
33... Rd8 {[%clk 0:00:36.3]} 34. Rc7 {[%clk 0:00:56]} 34... Nxc7 {[%clk
0:00:35.6]} 35. Nxc7 {[%clk 0:00:14.4]} 35... Rxa3 {[%clk 0:00:31.1]} 36. Ndb5
{[%clk 0:00:13.2]} 36... Rb3 {[%clk 0:00:30.8]} 37. Kg2 {[%clk 0:00:06.9]} 37...
a3 {[%clk 0:00:31]} 38. Nxa3 {[%clk 0:00:07]} 38... Rxa3 {[%clk 0:00:31.9]} 39.
Nb5 {[%clk 0:00:07.4]} 39... Rb3 {[%clk 0:00:32.3]} 40. Na7 {[%clk 0:00:06.3]}
40... Rd6 {[%clk 0:00:28.1]} 41. Nc8 {[%clk 0:00:04.3]} 41... Rd7 {[%clk
0:00:28.1]} 42. f4 {[%clk 0:00:02.9]} 42... Rb8 {[%clk 0:00:28.2]} 43. Ne7+
{[%clk 0:00:02.4]} 43... Rxe7 {[%clk 0:00:27.6]} 44. g4 {[%clk 0:00:03.3]} 44...
Rb3 {[%clk 0:00:26]} 45. gxh5 {[%clk 0:00:03]} 45... Ra7 {[%clk 0:00:26.9]} 46.
h6 {[%clk 0:00:02.7]} 46... Ra2+ {[%clk 0:00:27.8]} 47. Kf1 {[%clk 0:00:02.1]}
47... Rb1# {[%clk 0:00:28.7]} 0-1

[Event "Late-Titled-Tuesday-Blitz-September-12-2023"]
[Site "Chess.com"]
[Date "2023.09.12"]
[Round "9"]
[White "Ducke13"]
[Black "Inepton_Fermion"]
[Result "1-0"]
[WhiteElo "2511"]
[BlackElo "2372"]
[TimeControl "180+1"]
[EndTime "15:39:30 PDT"]
[Termination "Ducke13 won by resignation"]

1. d4 {[%clk 0:02:57]} 1... Nf6 {[%clk 0:02:59.6]} 2. g3 {[%clk 0:02:56.4]} 2...
e6 {[%clk 0:02:44.3]} 3. c4 {[%clk 0:02:55.8]} 3... Bb4+ {[%clk 0:02:40.4]} 4.
Nd2 {[%clk 0:02:55.4]} 4... O-O {[%clk 0:02:30.9]} 5. Bg2 {[%clk 0:02:55]} 5...
d5 {[%clk 0:02:31.4]} 6. Nf3 {[%clk 0:02:54.7]} 6... dxc4 {[%clk 0:02:25.8]} 7.
a3 {[%clk 0:02:54.6]} 7... Ba5 {[%clk 0:02:11.6]} 8. O-O {[%clk 0:02:52]} 8...
c3 {[%clk 0:02:06.8]} 9. Nc4 {[%clk 0:02:46.9]} 9... cxb2 {[%clk 0:02:05.9]} 10.
Bxb2 {[%clk 0:02:45.1]} 10... Bb6 {[%clk 0:02:02.7]} 11. a4 {[%clk 0:02:41.4]}
11... c6 {[%clk 0:01:46]} 12. Ba3 {[%clk 0:02:15.8]} 12... Re8 {[%clk
0:01:40.4]} 13. Nd6 {[%clk 0:02:15.3]} 13... Rf8 {[%clk 0:01:40.7]} 14. Nxc8
{[%clk 0:02:09.6]} 14... Qxc8 {[%clk 0:01:41.6]} 15. Bxf8 {[%clk 0:02:09.4]}
15... Qxf8 {[%clk 0:01:42.5]} 16. Ne5 {[%clk 0:02:02.4]} 16... Nbd7 {[%clk
0:01:33.9]} 17. a5 {[%clk 0:02:00.3]} 17... Bc7 {[%clk 0:01:27.6]} 18. Nxd7
{[%clk 0:01:49.5]} 18... Nxd7 {[%clk 0:01:28.5]} 19. a6 {[%clk 0:01:49.9]} 19...
Qd6 {[%clk 0:01:09]} 20. axb7 {[%clk 0:01:46.1]} 20... Rb8 {[%clk 0:01:09]} 21.
Rxa7 {[%clk 0:01:38.6]} 21... Bb6 {[%clk 0:01:08.7]} 22. Ra8 {[%clk 0:01:37.1]}
22... Qc7 {[%clk 0:01:01.1]} 23. Qc2 {[%clk 0:01:26.6]} 23... Qxb7 {[%clk
0:00:51.1]} 24. Qxc6 {[%clk 0:01:04]} 24... Qxc6 {[%clk 0:00:47.6]} 25. Bxc6
{[%clk 0:01:04.9]} 25... Rxa8 {[%clk 0:00:46]} 26. Bxa8 {[%clk 0:01:05.8]} 26...
Kf8 {[%clk 0:00:29.5]} 27. e3 {[%clk 0:01:04.8]} 27... Ke7 {[%clk 0:00:28.8]}
28. Rb1 {[%clk 0:01:03.9]} 28... Bc7 {[%clk 0:00:26.7]} 29. Bc6 {[%clk
0:00:58.8]} 29... Nb6 {[%clk 0:00:25.2]} 30. h4 {[%clk 0:00:52.1]} 30... Kd6
{[%clk 0:00:23.4]} 31. Be4 {[%clk 0:00:51.2]} 31... f5 {[%clk 0:00:21.9]} 32.
Bf3 {[%clk 0:00:49.6]} 32... e5 {[%clk 0:00:19.4]} 33. dxe5+ {[%clk 0:00:45.6]}
33... Kxe5 {[%clk 0:00:20.3]} 34. Rb5+ {[%clk 0:00:36.5]} 34... Ke6 {[%clk
0:00:16.3]} 35. Rc5 {[%clk 0:00:35.4]} 35... Bd6 {[%clk 0:00:15]} 36. Rc6 {[%clk
0:00:31.7]} 36... Nd7 {[%clk 0:00:15.6]} 37. Kg2 {[%clk 0:00:23.4]} 37... Ne5
{[%clk 0:00:15.6]} 38. Ra6 {[%clk 0:00:23.4]} 38... Nd3 {[%clk 0:00:15.9]} 39.
Kf1 {[%clk 0:00:14.5]} 39... Ne5 {[%clk 0:00:15.6]} 40. Ke2 {[%clk 0:00:13.7]}
40... Nc4 {[%clk 0:00:11.8]} 41. Ra2 {[%clk 0:00:11.6]} 41... Ne5 {[%clk
0:00:11.9]} 42. Rd2 {[%clk 0:00:11.2]} 42... Nc4 {[%clk 0:00:11.9]} 43. Bd5+
{[%clk 0:00:11.5]} 1-0

[Event "Late-Titled-Tuesday-Blitz-September-12-2023"]
[Site "Chess.com"]
[Date "2023.09.12"]
[Round "9"]
[White "emeli_chess"]
[Black "rdarruda"]
[Result "1-0"]
[WhiteElo "2383"]
[BlackElo "2495"]
[TimeControl "180+1"]
[EndTime "15:39:32 PDT"]
[Termination "emeli_chess won by resignation"]

1. d4 {[%clk 0:03:00.9]} 1... Nf6 {[%clk 0:02:57.9]} 2. c4 {[%clk 0:03:01]} 2...
e5 {[%clk 0:02:57.9]} 3. dxe5 {[%clk 0:03:00.6]} 3... Ne4 {[%clk 0:02:58]} 4.
Nf3 {[%clk 0:02:56.9]} 4... Nc6 {[%clk 0:02:57.7]} 5. e3 {[%clk 0:02:56.1]} 5...
d6 {[%clk 0:02:57]} 6. Be2 {[%clk 0:02:52.3]} 6... dxe5 {[%clk 0:02:55.9]} 7.
Qxd8+ {[%clk 0:02:51.5]} 7... Kxd8 {[%clk 0:02:56.8]} 8. O-O {[%clk 0:02:49.6]}
8... f6 {[%clk 0:02:56.5]} 9. Rd1+ {[%clk 0:02:48.1]} 9... Ke8 {[%clk
0:02:56.4]} 10. Nbd2 {[%clk 0:02:43.9]} 10... Nc5 {[%clk 0:02:55.9]} 11. Nb3
{[%clk 0:02:38.7]} 11... Be6 {[%clk 0:02:55.1]} 12. Nxc5 {[%clk 0:02:34.1]}
12... Bxc5 {[%clk 0:02:56]} 13. Bd2 {[%clk 0:02:16.4]} 13... Kf7 {[%clk
0:02:54.8]} 14. Bc3 {[%clk 0:02:14]} 14... Rhd8 {[%clk 0:02:52.6]} 15. h3 {[%clk
0:02:09.1]} 15... a5 {[%clk 0:02:49.6]} 16. Rxd8 {[%clk 0:01:57.6]} 16... Rxd8
{[%clk 0:02:48.5]} 17. b3 {[%clk 0:01:54.8]} 17... a4 {[%clk 0:02:42.6]} 18. Rd1
{[%clk 0:01:52.5]} 18... Ra8 {[%clk 0:02:41.1]} 19. Rb1 {[%clk 0:01:44.2]} 19...
axb3 {[%clk 0:02:38]} 20. axb3 {[%clk 0:01:44.6]} 20... Ra3 {[%clk 0:02:37.1]}
21. Bd1 {[%clk 0:01:31.6]} 21... Nb4 {[%clk 0:02:08.2]} 22. Ra1 {[%clk
0:01:28.6]} 22... Rxa1 {[%clk 0:02:02.8]} 23. Bxa1 {[%clk 0:01:28.1]} 23... Bf5
{[%clk 0:02:02.7]} 24. Ne1 {[%clk 0:01:23.3]} 24... c6 {[%clk 0:01:58.2]} 25.
Bc3 {[%clk 0:01:20.4]} 25... Bb1 {[%clk 0:01:57.4]} 26. Kf1 {[%clk 0:01:15]}
26... Nd3 {[%clk 0:01:54.8]} 27. Nxd3 {[%clk 0:01:13.6]} 27... Bxd3+ {[%clk
0:01:55.7]} 28. Ke1 {[%clk 0:01:14.1]} 28... Ke6 {[%clk 0:01:51.1]} 29. g4
{[%clk 0:01:04.4]} 29... g6 {[%clk 0:01:50]} 30. h4 {[%clk 0:00:57.4]} 30... f5
{[%clk 0:01:48]} 31. g5 {[%clk 0:00:57]} 31... b5 {[%clk 0:01:37.4]} 32. Kd2
{[%clk 0:00:56.2]} 32... bxc4 {[%clk 0:01:32.9]} 33. h5 {[%clk 0:00:40.1]} 33...
e4 {[%clk 0:01:15.1]} 34. f4 {[%clk 0:00:35.5]} 34... Bf1 {[%clk 0:01:00.7]} 35.
h6 {[%clk 0:00:33.3]} 35... Bb6 {[%clk 0:00:50.7]} 36. b4 {[%clk 0:00:27]} 36...
Kd5 {[%clk 0:00:45.9]} 37. Ba4 {[%clk 0:00:25.5]} 37... Bd3 {[%clk 0:00:44.9]}
38. Bd1 {[%clk 0:00:25.1]} 38... Bb1 {[%clk 0:00:44.8]} 39. Ba4 {[%clk
0:00:24.7]} 39... Ba2 {[%clk 0:00:44.9]} 40. Bd1 {[%clk 0:00:20.3]} 40... Bb3
{[%clk 0:00:44.2]} 41. Be2 {[%clk 0:00:19.7]} 41... c5 {[%clk 0:00:44.5]} 42.
Bh5 {[%clk 0:00:14.4]} 42... cxb4 {[%clk 0:00:24.1]} 43. Bxb4 {[%clk 0:00:14]}
43... gxh5 {[%clk 0:00:10]} 44. g6 {[%clk 0:00:13.3]} 1-0